fUST/lending_fUST_20250929
["ID","MTS","AMOUNT","RATE_DAILY","PERIOD"]
[388350708,1759115446532,-695.49,0.00027397,7]
[388350710,1759115446541,-3235.2,0.00027397,7]
[388350712,1759115446551,-480.0,0.00027397,7]
[388350714,1759115446560,-3235.2,0.00027397,7]
[388350716,1759115446569,-907.91,0.00027397,7]
[388350718,1759115446579,-3235.2,0.00027397,7]
[388350720,1759115446588,-3235.2,0.00027397,7]
[388350722,1759115446598,-3235.2,0.00027397,7]
[388350724,1759115446607,-151.0,0.00027397,7]
[388350725,1759115446617,-154.994451,0.00027397,7]
[388350727,1759115446626,-480.0,0.00027397,7]
[388350729,1759115446635,-151.0,0.00027397,7]
[388350731,1759115446645,-151.0,0.00027397,7]
[388350733,1759115446654,-842.79,0.00027397,7]
[388350735,1759115446664,-151.0,0.00027397,7]
[388350737,1759115446673,-480.0,0.00027397,7]
[388350739,1759115446682,-151.0,0.00027397,7]
[388350741,1759115446692,-291.28727581,0.00027397,7]
[388350743,1759115446701,-818.24,0.00027397,7]
[388350745,1759115446710,-3041.2,0.00027397,7]
[388350747,1759115446720,-489.08889683,0.00027397,7]
[388350749,1759115446729,-480.0,0.00027397,7]
[388350751,1759115446740,-151.0,0.00027397,7]
[388350753,1759115446749,-1489.13,0.00027397,7]
[388350755,1759115446759,-151.0,0.00027397,7]
[388350757,1759115446769,-151.0,0.00027397,7]
[388350758,1759115446779,-251.525182,0.00027397,7]
[388350760,1759115446789,-151.0,0.00027397,7]
[388350761,1759115446798,-251.525182,0.00027397,7]
[388350762,1759115446808,-151.0,0.00027397,7]
[388350764,1759115446818,-251.525182,0.00027397,7]
[388350766,1759115446828,-251.525182,0.00027397,7]
[388350767,1759115446838,-251.525182,0.00027397,7]
[388350769,1759115446849,-251.525182,0.00027397,7]
[388350771,1759115446859,-251.525182,0.00027397,7]
[388350773,1759115446870,-251.525182,0.00027397,7]
[388350775,1759115446879,-251.525182,0.00027397,7]
[388350777,1759115446889,-480.0,0.00027397,7]
[388350779,1759115446899,-251.525182,0.00027397,7]
[388350780,1759115446908,-251.525182,0.00027397,7]
[388350782,1759115446918,-251.525182,0.00027397,7]
[388350784,1759115446927,-387.84086418,0.00027397,7]
[388350786,1759115446939,-251.525182,0.00027397,7]
[388350788,1759115446949,-251.525182,0.00027397,7]
[388350790,1759115446959,-480.0,0.00027397,7]
[388350791,1759115446969,-251.525182,0.00027397,7]
[388350793,1759115446978,-1420.38,0.00027397,7]
[388350795,1759115446988,-251.525182,0.00027397,7]
[388350797,1759115446997,-480.0,0.00027397,7]
[388350799,1759115447007,-216.617254,0.00027397,7]
[388350800,1759115447016,-216.617254,0.00027397,7]
[388350802,1759115447025,-216.617254,0.00027397,7]
[388350804,1759115447035,-216.617254,0.00027397,7]
[388350806,1759115447044,-589.61,0.00027397,7]
[388350808,1759115447054,-216.617254,0.00027397,7]
[388350810,1759115447064,-216.617254,0.00027397,7]
[388350811,1759115447073,-216.617254,0.00027397,7]
[388350813,1759115447083,-216.617254,0.00027397,7]
[388350815,1759115447093,-216.617254,0.00027397,7]
[388350817,1759115447103,-1695.63,0.00027397,7]
[388350819,1759115447112,-216.617254,0.00027397,7]
[388350822,1759115447122,-1976.55,0.00027397,7]
[388350824,1759115447131,-216.617254,0.00027397,7]
[388350827,1759115447140,-216.617254,0.00027397,7]
[388350830,1759115447149,-216.617254,0.00027397,7]
[388350833,1759115447160,-216.617254,0.00027397,7]
[388350835,1759115447169,-216.617254,0.00027397,7]
[388350836,1759115447178,-216.617254,0.00027397,7]
[388350838,1759115447188,-480.0,0.00027397,7]
[388350840,1759115447197,-1130.6,0.00027397,7]
[388350842,1759115447206,-480.0,0.00027397,7]
[388350844,1759115447216,-480.0,0.00027397,7]
[388350845,1759115447226,-1150.28,0.00027397,7]
[388350847,1759115447236,-598.02,0.00027397,7]
[388350848,1759115447246,-1595.97,0.00027397,7]
[388350849,1759115447255,-480.0,0.00027397,7]
[388350850,1759115447265,-761.66,0.00027397,7]
[388350851,1759115447274,-480.0,0.00027397,7]
[388350852,1759115447284,-988.66,0.00027397,7]
[388350853,1759115447293,-151.0,0.00027397,7]
[388350854,1759115447302,-151.0,0.00027397,7]
[388350855,1759115447312,-151.0,0.00027397,7]
[388350856,1759115447321,-153.62719,0.00027397,7]
[388350857,1759115447331,-480.0,0.00027397,7]
[388350858,1759115447341,-1466.96,0.00027397,7]
[388350859,1759115447350,-480.0,0.00027397,7]
[388350860,1759115447359,-298.11962964,0.00027397,7]
[388350861,1759115447369,-480.0,0.00027397,7]
[388350862,1759115447378,-480.0,0.00027397,7]
[388350863,1759115447388,-480.0,0.00027397,7]
[388350864,1759115447397,-699.49,0.00027397,7]
[388350865,1759115447406,-1496.9,0.00027397,7]
[388350866,1759115447416,-15261.34,0.00027397,7]
[388350867,1759115447425,-480.0,0.00027397,7]
[388350868,1759115447434,-899.83,0.00027397,7]
[388350869,1759115447445,-480.0,0.00027397,7]
[388350870,1759115447454,-151.0,0.00027397,7]
[388350871,1759115447464,-153.029904,0.00027397,7]
[388350872,1759115447473,-3474.37,0.00027397,7]
[388350873,1759115447483,-480.0,0.00027397,7]
[388350874,1759115447492,-538.64,0.00027397,7]
[388350875,1759115447501,-709.55,0.00027397,7]
[388350876,1759115447511,-480.0,0.00027397,7]
[388350877,1759115447520,-581.95,0.00027397,7]
[388350878,1759115447530,-287.05244738,0.00027397,2]
[388350879,1759115447539,-507.7,0.00027397,7]
[388350880,1759115447549,-480.0,0.00027397,7]
[388350881,1759115447558,-480.0,0.00027397,7]
[388350882,1759115447568,-480.0,0.00027397,7]
[388350883,1759115447577,-3377.29,0.00027397,7]
[388350884,1759115447587,-2924.22,0.00027397,7]
[388350885,1759115447596,-1160.86,0.00027397,7]
[388350886,1759115447605,-632.5,0.00027397,7]
[388350887,1759115447614,-480.0,0.00027397,7]
[388350888,1759115447623,-480.0,0.00027397,7]
[388350889,1759115447633,-480.0,0.00027397,7]
[388350890,1759115447643,-151.0,0.00027397,7]
[388350891,1759115447653,-151.0,0.00027397,7]
[388350892,1759115447662,-7103.5,0.00027397,7]
[388350893,1759115447672,-151.0,0.00027397,7]
[388350895,1759115447681,-480.0,0.00027397,7]
[388350896,1759115447690,-152.791067,0.00027397,7]
[388350898,1759115447700,-480.0,0.00027397,7]
[388350899,1759115447710,-2651.26,0.00027397,7]
[388350901,1759115447719,-480.0,0.00027397,7]
[388350903,1759115447728,-504.22,0.00027397,7]
[388350905,1759115447738,-151.0,0.00027397,2]
[388350907,1759115447747,-480.0,0.00027397,7]
[388350909,1759115447756,-480.0,0.00027397,7]
[388350911,1759115447766,-480.0,0.00027397,7]
[388350913,1759115447775,-480.0,0.00027397,7]
[388350915,1759115447785,-832.75,0.00027397,7]
[388350917,1759115447794,-944.01,0.00027397,7]
[388350919,1759115447804,-816.45,0.00027397,7]
[388350921,1759115447813,-1133.05,0.00027397,7]
[388350923,1759115447823,-1566.64,0.00027397,7]
[388350925,1759115447837,-581.58,0.00027397,7]
[388350927,1759115447847,-805.66,0.00027397,7]
[388350929,1759115447857,-3600.6,0.00027397,7]
[388350931,1759115447867,-1075.61,0.00027397,7]
[388350933,1759115447877,-151.0,0.00027397,7]
[388350935,1759115447886,-151.0,0.00027397,7]
[388350936,1759115447896,-480.0,0.00027397,7]
[388350939,1759115447908,-480.0,0.00027397,7]
[388350941,1759115447917,-480.0,0.00027397,7]
[388350943,1759115447928,-296.52372095,0.00027397,7]
[388350945,1759115447937,-480.0,0.00027397,7]
[388350946,1759115447947,-1437.9,0.00027397,7]
[388350948,1759115447957,-151.0,0.00027397,7]
[388350950,1759115447966,-151.0,0.00027397,7]
[388350952,1759115447976,-955.81,0.00027397,7]
[388350954,1759115447985,-3437.32,0.00027397,7]
[388350956,1759115447995,-1224.97,0.00027397,7]
[388350958,1759115448004,-824.77,0.00027397,7]
[388350975,1759115448168,-480.0,0.00027397,7]
[388350977,1759115448178,-151.0,0.00027397,7]
[388350979,1759115448187,-2033.91,0.00027397,7]
[388350981,1759115448196,-485.61,0.00027397,7]
[388350982,1759115448206,-151.0,0.00027397,7]
[388350984,1759115448215,-216.936309,0.00027397,7]
[388350986,1759115448224,-480.0,0.00027397,7]
[388350988,1759115448233,-2136.2,0.00027397,7]
[388350990,1759115448241,-481.04797878,0.00027397,7]
[388350992,1759115448250,-2239.78,0.00027397,7]
[388350994,1759115448258,-1333.15,0.00027397,7]
[388350996,1759115448267,-480.0,0.00027397,7]
[388350997,1759115448276,-668.89,0.00027397,7]
[388350999,1759115448285,-480.0,0.00027397,7]
[388351001,1759115448295,-1708.45,0.00027397,7]
[388351003,1759115448304,-480.0,0.00027397,7]
[388351005,1759115448313,-566.4,0.00027397,7]
[388351007,1759115448323,-1274.21,0.00027397,7]
[388351009,1759115448332,-480.0,0.00027397,7]
[388351011,1759115448341,-8497.43,0.00027397,7]
[388351013,1759115448350,-480.0,0.00027397,7]
[388351015,1759115448360,-843.4,0.00027397,7]
[388351016,1759115448370,-151.0,0.00027397,7]
[388351018,1759115448380,-151.0,0.00027397,7]
[388351020,1759115448389,-998.11,0.00027397,7]
[388351022,1759115448398,-151.0,0.00027397,7]
[388351023,1759115448407,-151.0,0.00027397,7]
[388351024,1759115448416,-151.0,0.00027397,7]
[388351025,1759115448425,-151.0,0.00027397,7]
[388351026,1759115448435,-480.0,0.00027397,7]
[388351027,1759115448444,-665.97,0.00027397,7]
[388351028,1759115448453,-480.0,0.00027397,7]
[388351029,1759115448462,-151.0,0.00027397,7]
[388351030,1759115448471,-152.028106,0.00027397,7]
[388351031,1759115448480,-162.74,0.000274,2]
[388351032,1759115448490,-151.0,0.000275,13]
[388351033,1759115448499,-652.0,0.000275,2]
[388351034,1759115448508,-9457.75091745,0.00027571,2]
[388351035,1759115448518,-151.0,0.00027613,7]
[388351036,1759115448527,-178.734315,0.00027613,7]
[388351037,1759115448536,-151.0,0.00027613,7]
[388351038,1759115448546,-165.842868,0.00027613,7]
[388351039,1759115448555,-151.0,0.00027613,7]
[388351040,1759115448565,-151.0,0.00027613,7]
[388351041,1759115448574,-151.0,0.00027613,7]
[388351042,1759115448583,-420.0,0.00027613,2]
[388351043,1759115448593,-1680.0,0.00027614,2]
[388351044,1759115448602,-1653.62743223,0.00027642,2]
[388351045,1759115448611,-151.0,0.00027661,7]
[388351046,1759115448620,-151.0,0.00027661,7]
[388351047,1759115448630,-151.0,0.00027661,7]
[388351048,1759115448639,-247.311777,0.00027661,7]
[388351049,1759115448648,-247.311777,0.00027661,7]
[388351050,1759115448658,-151.0,0.00027661,7]
[388351051,1759115448667,-247.311777,0.00027661,7]
[388351052,1759115448676,-247.311777,0.00027661,7]
[388351053,1759115448685,-171.295476,0.00027661,7]
[388351054,1759115448695,-151.0,0.00027661,7]
[388351055,1759115448704,-151.0,0.00027661,7]
[388351056,1759115448713,-171.295476,0.00027661,7]
[388351057,1759115448723,-244.403008,0.00027661,7]
[388351058,1759115448732,-151.0,0.00027661,7]
[388351059,1759115448742,-171.295476,0.00027661,7]
[388351060,1759115448751,-171.295476,0.00027661,7]
[388351061,1759115448759,-151.0,0.00027661,7]
[388351062,1759115448768,-151.0,0.00027661,7]
[388351063,1759115448777,-762.771744,0.00027661,7]
[388351064,1759115448786,-762.771744,0.00027661,7]
[388351065,1759115448795,-762.771744,0.00027661,7]
[388351066,1759115448804,-762.771744,0.00027661,7]
[388351067,1759115448813,-176.56894284,0.0002767,10]
[388351068,1759115448822,-151.0,0.00027671,7]
[388351069,1759115448831,-151.0,0.00027671,7]
[388351070,1759115448840,-681.0,0.00027671,7]
[388351071,1759115448849,-681.0,0.00027671,7]
[388351072,1759115448858,-151.0,0.00027671,7]
[388351073,1759115448868,-151.0,0.00027671,7]
[388351074,1759115448877,-500.0,0.00027671,7]
[388351075,1759115448886,-151.0,0.00027671,7]
[388351076,1759115448895,-151.0,0.00027671,7]
[388351077,1759115448904,-151.0,0.00027671,7]
[388351078,1759115448913,-151.0,0.00027671,7]
[388351079,1759115448922,-500.0,0.00027671,2]
[388351080,1759115448931,-151.0,0.00027671,2]
[388351081,1759115448940,-580.99,0.00027671,7]
[388351082,1759115448950,-481.09,0.00027671,7]
[388351083,1759115448959,-480.0,0.00027671,7]
[388351084,1759115448968,-510.6,0.00027671,7]
[388351085,1759115448978,-480.0,0.00027671,7]
[388351086,1759115448987,-480.0,0.00027671,7]
[388351087,1759115448996,-480.0,0.00027671,7]
[388351088,1759115449007,-480.0,0.00027671,7]
[388351089,1759115449016,-480.0,0.00027671,7]
[388351090,1759115449026,-721.14,0.00027671,7]
[388351091,1759115449035,-480.0,0.00027671,7]
[388351092,1759115449045,-480.0,0.00027671,7]
[388351093,1759115449054,-480.0,0.00027671,7]
[388351094,1759115449063,-480.0,0.00027671,7]
[388351095,1759115449072,-478.09651091,0.00027671,7]
[388351096,1759115449081,-792.34,0.00027671,7]
[388351097,1759115449091,-480.0,0.00027671,7]
[388351098,1759115449101,-480.0,0.00027671,7]
[388351099,1759115449111,-480.0,0.00027671,7]
[388351100,1759115449120,-480.0,0.00027671,7]
[388351101,1759115449129,-477.67383124,0.00027671,7]
[388351102,1759115449139,-477.91091285,0.00027671,7]
[388351103,1759115449148,-530.94,0.00027671,7]
[388351104,1759115449159,-480.0,0.00027671,7]
[388351105,1759115449169,-484.17828141,0.00027671,7]
[388351106,1759115449178,-543.11,0.00027671,7]
[388351107,1759115449188,-520.23,0.00027671,7]
[388351109,1759115449198,-954.34,0.00027671,7]
[388351110,1759115449207,-509.63424459,0.00027671,7]
[388351111,1759115449217,-480.0,0.00027671,7]
[388351112,1759115449226,-480.0,0.00027671,7]
[388351113,1759115449235,-480.0,0.00027671,7]
[388351114,1759115449245,-633.6,0.00027671,7]
[388351115,1759115449253,-480.0,0.00027671,7]
[388351116,1759115449262,-1001.13,0.00027671,7]
[388351117,1759115449271,-480.0,0.00027671,7]
[388351118,1759115449281,-151.0,0.00027671,7]
[388351119,1759115449290,-675.78,0.00027671,7]
[388351120,1759115449300,-486.75808927,0.00027671,7]
[388351121,1759115449309,-480.0,0.00027671,7]
[388351122,1759115449318,-762.59,0.00027671,7]
[388351123,1759115449327,-499.75816364,0.00027671,7]
[388351124,1759115449336,-480.0,0.00027671,7]
[388351126,1759115449346,-480.0,0.00027671,7]
[388351128,1759115449355,-480.0,0.00027671,7]
[388351129,1759115449365,-480.0,0.00027671,7]
[388351131,1759115449374,-480.0,0.00027671,7]
[388351133,1759115449384,-480.0,0.00027671,7]
[388351135,1759115449393,-480.0,0.00027671,7]
[388351137,1759115449402,-480.0,0.00027671,7]
[388351138,1759115449411,-609.7,0.00027671,7]
[388351140,1759115449421,-251.0433777,0.00027671,7]
[388351142,1759115449430,-480.0,0.00027671,7]
[388351144,1759115449439,-154.417876,0.00027671,7]
[388351146,1759115449449,-480.0,0.00027671,7]
[388351148,1759115449458,-397.94718068,0.00027671,7]
[388351150,1759115449467,-411.81271481,0.00027671,7]
[388351152,1759115449476,-480.0,0.00027671,7]
[388351154,1759115449485,-480.0,0.00027671,7]
[388351155,1759115449495,-478.04169211,0.00027671,7]
[388351157,1759115449504,-707.9,0.00027671,7]
[388351159,1759115449514,-900.69,0.00027671,7]
[388351161,1759115449523,-480.0,0.00027671,7]
[388351163,1759115449532,-480.0,0.00027671,7]
[388351165,1759115449541,-480.0,0.00027671,7]
[388351167,1759115449550,-688.35,0.00027671,7]
[388351169,1759115449560,-517.09,0.00027671,7]
[388351170,1759115449569,-480.0,0.00027671,7]
[388351172,1759115449578,-480.0,0.00027671,7]
[388351174,1759115449589,-480.0,0.00027671,7]
[388351176,1759115449598,-487.81049592,0.00027671,7]
[388351178,1759115449607,-480.0,0.00027671,7]
[388351180,1759115449617,-151.0,0.00027671,7]
[388351182,1759115449627,-480.0,0.00027671,7]
[388351184,1759115449636,-151.0,0.00027671,7]
[388351186,1759115449645,-151.0,0.00027671,7]
[388351188,1759115449654,-151.0,0.00027671,7]
[388351190,1759115449664,-480.0,0.00027671,7]
[388351191,1759115449673,-480.0,0.00027671,7]
[388351193,1759115449682,-480.0,0.00027671,7]
[388351195,1759115449692,-644.77,0.00027671,7]
[388351197,1759115449702,-496.91,0.00027671,7]
[388351199,1759115449711,-626.25,0.00027671,7]
[388351201,1759115449721,-480.0,0.00027671,7]
[388351203,1759115449730,-480.0,0.00027671,7]
[388351205,1759115449739,-480.0,0.00027671,7]
[388351207,1759115449748,-780.57,0.00027671,7]
[388351209,1759115449758,-609.54,0.00027671,7]
[388351211,1759115449767,-707.77,0.00027671,7]
[388351213,1759115449776,-758.31,0.00027671,7]
[388351214,1759115449786,-621.62545626,0.00027671,3]
[388351215,1759115449794,-480.0,0.00027671,7]
[388351216,1759115449803,-644.6,0.00027671,7]
[388351217,1759115449812,-480.0,0.00027671,7]
[388351218,1759115449821,-530.89,0.00027671,7]
[388351219,1759115449836,-480.0,0.00027671,7]
[388351220,1759115449846,-480.0,0.00027671,7]
[388351221,1759115449855,-480.0,0.00027671,7]
[388351222,1759115449864,-259.96779115,0.00027671,7]
[388351223,1759115449874,-498.54694724,0.00027671,7]
[388351224,1759115449883,-480.0,0.00027671,7]
[388351225,1759115449892,-480.0,0.00027671,7]
[388351226,1759115449902,-1216.7,0.00027671,7]
[388351227,1759115449911,-480.0,0.00027671,7]
[388351228,1759115449920,-480.0,0.00027671,7]
[388351229,1759115449929,-509.63,0.00027671,7]
[388351231,1759115449938,-480.0,0.00027671,7]
[388351233,1759115449947,-636.16,0.00027671,7]
[388351235,1759115449956,-2450.47,0.00027671,7]
[388351237,1759115449966,-906.06,0.00027671,7]
[388351239,1759115449974,-1296.15,0.00027671,7]
[388351241,1759115449984,-480.0,0.00027671,7]
[388351243,1759115449993,-522.5,0.00027671,7]
[388351245,1759115450003,-499.52201721,0.00027671,7]
[388351247,1759115450012,-533.5,0.00027671,7]
[388351248,1759115450021,-480.0,0.00027671,7]
[388351250,1759115450030,-333.07984678,0.00027671,7]
[388351252,1759115450039,-480.0,0.00027671,7]
[388351254,1759115450048,-480.0,0.00027671,7]
[388351256,1759115450057,-480.0,0.00027671,7]
[388351258,1759115450066,-693.8,0.00027671,7]
[388351260,1759115450076,-480.0,0.00027671,7]
[388351262,1759115450085,-216.565055,0.00027671,7]
[388351264,1759115450094,-588.83,0.00027671,7]
[388351266,1759115450103,-480.0,0.00027671,7]
[388351268,1759115450112,-506.57,0.00027671,7]
[388351270,1759115450121,-398.06432571,0.00027671,7]
[388351272,1759115450130,-480.0,0.00027671,7]
[388351274,1759115450140,-480.0,0.00027671,7]
[388351276,1759115450149,-151.0,0.00027671,7]
[388351278,1759115450158,-151.0,0.00027671,7]
[388351280,1759115450167,-151.0,0.00027671,7]
[388351282,1759115450176,-1786.21,0.00027671,7]
[388351284,1759115450186,-480.0,0.00027671,7]
[388351286,1759115450196,-833.1,0.00027671,7]
[388351288,1759115450205,-481.3591902,0.00027671,7]
[388351290,1759115450215,-480.0,0.00027671,7]
[388351292,1759115450224,-480.0,0.00027671,7]
[388351294,1759115450234,-480.0,0.00027671,7]
[388351296,1759115450243,-539.13,0.00027671,7]
[388351298,1759115450253,-641.5,0.00027671,7]
[388351300,1759115450263,-854.99,0.00027671,7]
[388351302,1759115450272,-860.94,0.00027671,7]
[388351304,1759115450282,-603.42,0.00027671,7]
[388351306,1759115450292,-726.13,0.00027671,7]
[388351308,1759115450301,-480.0,0.00027671,7]
[388351310,1759115450311,-480.0,0.00027671,7]
[388351312,1759115450320,-151.0,0.00027671,7]
[388351313,1759115450329,-151.0,0.00027671,7]
[388351315,1759115450339,-151.0,0.00027671,7]
[388351317,1759115450349,-648.47,0.00027671,7]
[388351319,1759115450358,-507.91,0.00027671,7]
[388351321,1759115450367,-151.0,0.00027671,7]
[388351323,1759115450376,-480.0,0.00027671,7]
[388351325,1759115450386,-151.0,0.00027671,7]
[388351327,1759115450396,-151.0,0.00027671,7]
[388351329,1759115450406,-151.0,0.00027671,7]
[388351331,1759115450415,-151.0,0.00027671,7]
[388351333,1759115450424,-151.0,0.00027671,7]
[388351335,1759115450433,-151.0,0.00027671,7]
[388351337,1759115450442,-151.0,0.00027671,7]
[388351339,1759115450451,-151.0,0.00027671,7]
[388351341,1759115450460,-480.0,0.00027671,7]
[388351343,1759115450470,-779.13,0.00027671,7]
[388351345,1759115450479,-500.72,0.00027671,7]
[388351347,1759115450490,-480.0,0.00027671,7]
[388351349,1759115450499,-480.0,0.00027671,7]
[388351351,1759115450508,-734.31,0.00027671,7]
[388351353,1759115450517,-486.94493813,0.00027671,7]
[388351355,1759115450526,-480.0,0.00027671,7]
[388351357,1759115450536,-483.74801024,0.00027671,7]
[388351359,1759115450545,-721.75,0.00027671,7]
[388351361,1759115450555,-480.0,0.00027671,7]
[388351362,1759115450565,-480.0,0.00027671,7]
[388351364,1759115450574,-480.0,0.00027671,7]
[388351366,1759115450583,-480.0,0.00027671,7]
[388351369,1759115450594,-832.77,0.00027671,7]
[388351371,1759115450603,-565.03,0.00027671,7]
[388351373,1759115450613,-850.51,0.00027671,7]
[388351375,1759115450622,-604.50982546,0.00027671,7]
[388351376,1759115450631,-891.34,0.00027671,7]
[388351378,1759115450640,-1006.48,0.00027671,7]
[388351380,1759115450649,-636.84,0.00027671,7]
[388351382,1759115450658,-609.16,0.00027671,7]
[388351384,1759115450667,-480.55988002,0.00027671,7]
[388351386,1759115450676,-481.15869667,0.00027671,7]
[388351388,1759115450686,-480.0,0.00027671,7]
[388351390,1759115450695,-480.0,0.00027671,7]
[388351392,1759115450704,-480.0,0.00027671,7]
[388351394,1759115450713,-1535.25,0.00027671,7]
[388351396,1759115450722,-480.0,0.00027671,7]
[388351398,1759115450732,-480.0,0.00027671,7]
[388351400,1759115450740,-480.0,0.00027671,7]
[388351402,1759115450749,-480.0,0.00027671,7]
[388351404,1759115450758,-480.0,0.00027671,7]
[388351406,1759115450767,-480.0,0.00027671,7]
[388351408,1759115450776,-480.0,0.00027671,7]
[388351410,1759115450785,-480.0,0.00027671,7]
[388351412,1759115450795,-480.0,0.00027671,7]
[388351414,1759115450804,-836.63,0.00027671,7]
[388351416,1759115450814,-480.0,0.00027671,7]
[388351418,1759115450823,-151.0,0.00027671,7]
[388351420,1759115450833,-480.0,0.00027671,7]
[388351421,1759115450842,-480.0,0.00027671,7]
[388351423,1759115450851,-151.0,0.00027671,7]
[388351425,1759115450860,-151.0,0.00027671,7]
[388351427,1759115450869,-528.15624669,0.00027671,7]
[388351429,1759115450878,-930.27,0.00027671,7]
[388351431,1759115450887,-767.64,0.00027671,7]
[388351433,1759115450897,-480.0,0.00027671,7]
[388351435,1759115450906,-409.00415831,0.00027671,7]
[388351437,1759115450915,-1818.41,0.00027671,7]
[388351439,1759115450924,-677.72,0.00027671,7]
[388351441,1759115450934,-200.0,0.00027671,7]
[388351443,1759115450943,-480.0,0.00027671,7]
[388351445,1759115450953,-480.0,0.00027671,7]
[388351447,1759115450962,-480.0,0.00027671,7]
[388351449,1759115450972,-782.75,0.00027671,7]
[388351451,1759115450982,-689.47,0.00027671,7]
[388351454,1759115450992,-777.19,0.00027671,7]
[388351455,1759115451001,-504.37,0.00027671,7]
[388351457,1759115451010,-949.01,0.00027671,7]
[388351459,1759115451020,-911.81,0.00027671,7]
[388351461,1759115451029,-480.0,0.00027671,7]
[388351463,1759115451038,-480.0,0.00027671,7]
[388351465,1759115451047,-516.21,0.00027671,7]
[388351467,1759115451057,-480.0,0.00027671,7]
[388351469,1759115451067,-480.0,0.00027671,7]
[388351471,1759115451076,-934.94,0.00027671,7]
[388351473,1759115451085,-504.72,0.00027671,7]
[388351475,1759115451095,-639.65,0.00027671,7]
[388351477,1759115451104,-480.0,0.00027671,7]
[388351479,1759115451113,-791.03,0.00027671,7]
[388351481,1759115451125,-804.07,0.00027671,7]
[388351483,1759115451134,-151.0,0.00027671,7]
[388351485,1759115451143,-151.0,0.00027671,7]
[388351487,1759115451153,-169.730976,0.00027671,7]
[388351489,1759115451162,-169.730976,0.00027671,7]
[388351491,1759115451172,-169.730976,0.00027671,7]
[388351493,1759115451181,-169.730976,0.00027671,7]
[388351495,1759115451190,-169.730976,0.00027671,7]
[388351513,1759115451350,-1757.75,0.00027671,7]
[388351515,1759115451359,-169.730976,0.00027671,7]
[388351517,1759115451369,-750.05,0.00027671,7]
[388351519,1759115451378,-169.730976,0.00027671,7]
[388351520,1759115451388,-169.730976,0.00027671,7]
[388351522,1759115451397,-2425.39,0.00027671,7]
[388351524,1759115451406,-480.0,0.00027671,7]
[388351526,1759115451416,-513.60198346,0.00027671,7]
[388351528,1759115451426,-480.0,0.00027671,7]
[388351530,1759115451435,-480.0,0.00027671,7]
[388351532,1759115451445,-480.0,0.00027671,7]
[388351534,1759115451454,-319.55031309,0.00027671,7]
[388351536,1759115451463,-549.09842155,0.00027671,7]
[388351538,1759115451472,-480.0,0.00027671,7]
[388351540,1759115451481,-1576.64,0.00027671,7]
[388351542,1759115451490,-658.7,0.00027671,7]
[388351544,1759115451500,-881.36,0.00027671,7]
[388351546,1759115451509,-633.06,0.00027671,7]
[388351548,1759115451518,-480.0,0.00027671,7]
[388351550,1759115451528,-151.0,0.00027671,7]
[388351552,1759115451537,-480.0,0.00027671,7]